bitfinex/quotes_BTCUSD_20241027
["timestamp","ask_amount","ask_price","bid_price","bid_amount"]
[1730010169873,0.20989314,67126.0,67125.0,0.184901]
[1730010170118,0.04521638,67126.0,67125.0,0.184901]
[1730010170354,0.15671996,67126.0,67125.0,0.184901]
[1730010170581,0.04521638,67126.0,67125.0,0.184901]
[1730010170801,0.15671933,67126.0,67125.0,0.184901]
[1730010171279,0.3213604,67126.0,67125.0,0.184901]
[1730010175271,0.32132517,67126.0,67125.0,0.184901]
[1730010176853,0.20983645,67126.0,67125.0,0.006601]
[1730010187915,0.20985326,67126.0,67125.0,0.006601]
[1730010188577,0.35882626,67126.0,67125.0,0.006601]
[1730010190489,0.20985326,67126.0,67125.0,0.006601]
[1730010190714,0.35882626,67126.0,67125.0,0.006601]
[1730010195606,0.20985326,67126.0,67125.0,0.006601]
[1730010196026,0.35882626,67126.0,67125.0,0.006601]
[1730010196888,0.20985326,67126.0,67125.0,0.006601]
[1730010197291,0.35882626,67126.0,67125.0,0.006601]
[1730010199398,0.20985326,67126.0,67125.0,0.006601]
[1730010199619,0.20985326,67126.0,67125.0,0.233976]
[1730010200056,0.20985326,67126.0,67125.0,0.33182105]
[1730010200268,0.17228088,67126.0,67125.0,0.33182105]
[1730010200493,0.21020289,67126.0,67125.0,0.33182105]
[1730010202954,0.21020289,67126.0,67125.0,0.18284605]
[1730010205344,0.21020289,67126.0,67125.0,0.006601]
[1730010205784,0.21020289,67126.0,67125.0,0.155576]
[1730010206434,0.17228088,67126.0,67125.0,0.155576]
[1730010206637,0.17228088,67126.0,67125.0,0.10444605]
[1730010206845,0.21020289,67126.0,67125.0,0.10444605]
[1730010207720,0.21020289,67126.0,67125.0,0.42942105]
[1730010209253,0.21020289,67126.0,67125.0,0.28044605]
[1730010209493,0.21020289,67126.0,67125.0,0.42942105]
[1730010211824,0.21020289,67126.0,67125.0,0.28044605]
[1730010212108,0.21020289,67126.0,67125.0,0.42942105]
[1730010212845,0.21020289,67126.0,67125.0,0.28044605]
[1730010216924,0.21020289,67126.0,67125.0,0.42942105]
[1730010218520,0.17228088,67126.0,67125.0,0.42942105]
[1730010219003,0.21036931,67126.0,67125.0,0.42942105]
[1730010221488,0.21036931,67126.0,67125.0,0.28044605]
[1730010221693,0.21036931,67126.0,67125.0,0.42942105]
[1730010224120,0.21036931,67126.0,67125.0,0.28044605]
[1730010224534,0.04573243,67126.0,67125.0,0.28044605]
[1730010224739,0.21046372,67126.0,67125.0,0.28044605]
[1730010225566,0.21046372,67126.0,67125.0,0.42942105]
[1730010226397,0.21046372,67126.0,67125.0,0.20324605]
[1730010226602,0.21046372,67126.0,67125.0,0.10444605]
[1730010232346,0.21046372,67126.0,67125.0,0.25342105]
[1730010232597,0.21046372,67126.0,67125.0,0.10444605]
[1730010232816,0.2104582,67126.0,67125.0,0.10444605]
[1730010235576,0.2104582,67126.0,67125.0,0.25342105]
[1730010236342,0.2104582,67126.0,67125.0,0.10444605]
[1730010241737,0.21047626,67126.0,67125.0,0.10444605]
[1730010246248,0.21050691,67126.0,67125.0,0.10444605]
[1730010249522,0.21050691,67126.0,67125.0,0.25342105]
[1730010249729,0.21050691,67126.0,67125.0,0.10444605]
[1730010250811,0.21051027,67126.0,67125.0,0.10444605]
[1730010256588,0.21051027,67126.0,67125.0,0.25342105]
[1730010258390,0.21051027,67126.0,67125.0,0.10444605]
[1730010259317,0.21051027,67126.0,67125.0,0.25342105]
[1730010260255,0.21051179,67126.0,67125.0,0.25342105]
[1730010261394,0.21051179,67126.0,67125.0,0.10444605]
[1730010263484,0.21051179,67126.0,67125.0,0.25342105]
[1730010264899,0.21051179,67126.0,67125.0,0.10444605]
[1730010265137,0.21051179,67126.0,67125.0,0.25342105]
[1730010267070,0.21051179,67126.0,67125.0,0.155576]
[1730010269186,0.21051179,67126.0,67125.0,0.006601]
[1730010269406,0.21052854,67126.0,67125.0,0.006601]
[1730010273958,0.21053653,67126.0,67125.0,0.006601]
[1730010275089,0.21053653,67126.0,67125.0,0.155576]
[1730010275319,0.21053653,67126.0,67125.0,0.006601]
[1730010278601,0.21053878,67126.0,67125.0,0.006601]
[1730010282329,0.21053878,67126.0,67125.0,0.34137648]
[1730010282781,0.1573403,67126.0,67125.0,0.34137648]
[1730010282999,0.15734122,67126.0,67125.0,0.34137648]
[1730010283289,0.32213858,67126.0,67125.0,0.34137648]
[1730010283727,0.21052979,67126.0,67125.0,0.34137648]
[1730010286594,0.29979132,67126.0,67125.0,0.34137648]
[1730010287444,0.2997467,67126.0,67125.0,0.34137648]
[1730010287655,0.29974674,67126.0,67125.0,0.34137648]
[1730010287882,0.11267972,67126.0,67125.0,0.34137648]
[1730010288086,0.04573243,67126.0,67125.0,0.34603647]
[1730010288775,0.11267972,67126.0,67125.0,0.34137648]
[1730010289400,0.04573243,67126.0,67125.0,0.34137648]
[1730010289846,0.09035147,67126.0,67125.0,0.34137648]
[1730010290273,0.11267972,67126.0,67125.0,0.43922153]
[1730010290480,0.04573243,67126.0,67125.0,0.43922153]
[1730010291119,0.09034916,67126.0,67125.0,0.43922153]
[1730010292306,0.09034754,67126.0,67125.0,0.43922153]
[1730010292760,0.05225911,67126.0,67125.0,0.43922153]
[1730010292991,0.09034834,67126.0,67125.0,0.43922153]
[1730010293657,0.04573323,67126.0,67125.0,0.43922153]
[1730010295526,0.09034834,67126.0,67125.0,0.43922153]
[1730010296648,0.04573323,67126.0,67125.0,0.43922153]
[1730010297138,0.04573323,67126.0,67125.0,0.46222153]
[1730010298077,0.007644,67126.0,67125.0,0.46688142]
[1730010298313,0.04573323,67126.0,67125.0,0.46688142]
[1730010298554,0.007644,67126.0,67125.0,0.46688142]
[1730010300637,0.007644,67126.0,67125.0,0.46222153]
[1730010300868,0.007644,67126.0,67125.0,0.4668814]
[1730010301062,0.007644,67126.0,67125.0,0.46222153]
[1730010302400,0.007644,67126.0,67125.0,0.4668814]
[1730010304683,0.007644,67126.0,67125.0,0.46222153]
[1730010304909,0.007644,67126.0,67125.0,0.4668814]
[1730010307496,0.007644,67126.0,67125.0,0.34603635]
[1730010307729,0.007644,67126.0,67125.0,0.2725814]
[1730010307948,0.04573398,67126.0,67125.0,0.2725814]
[1730010308191,0.007644,67126.0,67125.0,0.26792153]
[1730010309311,0.007644,67126.0,67125.0,0.27258147]
[1730010310636,0.001644,67126.0,67125.0,0.27258147]
[1730010312415,0.001644,67126.0,67125.0,0.26792153]
[1730010312622,0.001644,67126.0,67125.0,0.27258144]
[1730010313038,0.003644,67126.0,67125.0,0.27258144]
[1730010314090,0.003644,67126.0,67125.0,0.27258142]
[1730010319949,0.003644,67126.0,67125.0,0.26792153]
[1730010320166,0.003644,67126.0,67125.0,0.2725814]
[1730010324087,0.003644,67126.0,67125.0,0.26792153]
[1730010325192,0.003644,67126.0,67125.0,0.2725814]
[1730010327643,0.003644,67126.0,67125.0,0.17473635]
[1730010328096,0.04189335,67126.0,67125.0,0.2725814]
[1730010328755,0.08652126,67126.0,67125.0,0.2725814]
[1730010329679,0.08652412,67126.0,67125.0,0.2725814]
[1730010331944,0.08652412,67126.0,67125.0,0.26792153]
[1730010332182,0.08652412,67126.0,67125.0,0.2725814]
[1730010332433,0.08653055,67126.0,67125.0,0.2725814]
[1730010333158,0.08653055,67126.0,67125.0,0.26792153]
[1730010337726,0.04189335,67126.0,67125.0,0.26792153]
[1730010338161,0.04189335,67126.0,67125.0,0.2725814]
[1730010338604,0.04189335,67126.0,67125.0,0.2955814]
[1730010338822,0.08653856,67126.0,67125.0,0.2955814]
[1730010339046,0.04828921,67126.0,67125.0,0.2955814]
[1730010339276,0.08653821,67126.0,67125.0,0.2955814]
[1730010339495,0.04828921,67126.0,67125.0,0.2955814]
[1730010339704,0.08653821,67126.0,67125.0,0.2955814]
[1730010339945,0.04828921,67126.0,67125.0,0.2955814]
[1730010340143,0.08653821,67126.0,67125.0,0.2955814]
[1730010340387,0.04828921,67126.0,67125.0,0.2955814]
[1730010340661,0.08653821,67126.0,67125.0,0.2955814]
[1730010340864,0.04828921,67126.0,67125.0,0.2955814]
[1730010341070,0.08668758,67126.0,67125.0,0.2955814]
[1730010341273,0.04828921,67126.0,67125.0,0.2955814]
[1730010341514,0.08668758,67126.0,67125.0,0.2955814]
[1730010341743,0.04828921,67126.0,67125.0,0.2955814]
[1730010342006,0.08668758,67126.0,67125.0,0.2955814]
[1730010342218,0.08668758,67126.0,67125.0,0.29092153]
[1730010347639,0.04204237,67126.0,67125.0,0.29092153]
[1730010348049,0.08668776,67126.0,67125.0,0.29092153]
[1730010348248,0.04828939,67126.0,67125.0,0.29092153]
[1730010348468,0.08668776,67126.0,67125.0,0.29092153]
[1730010350449,0.08668776,67126.0,67125.0,0.26792153]
[1730010351480,0.04204237,67126.0,67125.0,0.26792153]
[1730010352283,0.003644,67126.0,67125.0,0.26792153]
[1730010360464,0.04828498,67126.0,67125.0,0.26792153]
[1730010360874,0.08668287,67126.0,67125.0,0.26792153]
[1730010361725,0.08668316,67126.0,67125.0,0.26792153]
[1730010363031,0.04204189,67126.0,67125.0,0.26792153]
[1730010364934,0.08668316,67126.0,67125.0,0.26792153]
[1730010371217,0.0866814,67126.0,67125.0,0.26792153]
[1730010375289,0.04204189,67126.0,67125.0,0.26792153]
[1730010376613,0.08668123,67126.0,67125.0,0.26792153]
[1730010378287,0.08668123,67126.0,67125.0,0.17007648]
[1730010378515,0.08668123,67126.0,67125.0,0.26792153]
[1730010380305,0.08668021,67126.0,67125.0,0.26792153]
[1730010383316,0.04204189,67126.0,67125.0,0.26792153]
[1730010383720,0.10899938,67126.0,67125.0,0.26792153]
[1730010385950,0.10899938,67126.0,67125.0,0.26292153]
[1730010386540,0.10899938,67126.0,67125.0,0.25792153]
[1730010387929,0.10899938,67126.0,67125.0,0.44685875]
[1730010388130,0.10899938,67126.0,67125.0,0.45185875]
[1730010388353,0.10899938,67126.0,67125.0,0.44685875]
[1730010388979,0.10899938,67126.0,67125.0,0.44185875]
[1730010389188,0.10899418,67126.0,67125.0,0.44185875]
[1730010391619,0.04204189,67126.0,67125.0,0.44185875]
[1730010395988,0.03858589,67127.0,67126.0,0.15547348]
[1730010398323,0.06895639,67128.0,67127.0,0.15547148]
[1730010398536,0.0689571,67128.0,67127.0,0.15547148]
[1730010401883,0.06895725,67128.0,67127.0,0.15547148]
[1730010403789,0.03879696,67128.0,67127.0,0.15547148]
[1730010404021,0.10575475,67128.0,67127.0,0.15547148]
[1730010406098,0.12807329,67128.0,67127.0,0.15547148]
[1730010406520,0.29285181,67128.0,67127.0,0.15547148]
[1730010407753,0.20357677,67128.0,67127.0,0.15547148]
[1730010408083,0.2944983,67128.0,67127.0,0.15547148]
[1730010409116,0.20522077,67128.0,67127.0,0.15547148]
[1730010409319,0.2944983,67128.0,67127.0,0.15547148]
[1730010409521,0.20522077,67128.0,67127.0,0.15547148]
[1730010410163,0.2944983,67128.0,67127.0,0.15547148]
[1730010412391,0.10740451,67128.0,67127.0,0.33077148]
[1730010413747,0.04044096,67128.0,67127.0,0.33077148]
[1730010413950,0.04044096,67128.0,67127.0,0.35953743]
[1730010414153,0.003644,67128.0,67127.0,0.35953743]
[1730010414529,0.003644,67128.0,67127.0,0.36453743]
[1730010416254,0.07060785,67128.0,67127.0,0.36453743]
[1730010417408,0.003644,67128.0,67127.0,0.36453743]
[1730010420182,0.003644,67128.0,67127.0,0.36535943]
[1730010420502,0.003644,67128.0,67127.0,0.28505943]
[1730010426560,0.07060844,67128.0,67127.0,0.28505943]
[1730010429201,0.07060625,67128.0,67127.0,0.28505943]
[1730010435166,0.07060625,67128.0,67127.0,0.19005943]
[1730010435556,0.07060625,67128.0,67127.0,0.18505943]
[1730010435789,0.10754539,67128.0,67127.0,0.18505943]
[1730010443501,0.10754539,67128.0,67127.0,0.28485943]
[1730010445396,0.10754539,67128.0,67127.0,0.37495943]
[1730010446348,0.04058314,67128.0,67127.0,0.37495943]
[1730010452871,0.003644,67128.0,67127.0,0.37495943]
[1730010453102,0.04072546,67128.0,67127.0,0.37495943]
[1730010461932,0.08537173,67128.0,67127.0,0.37495943]
[1730010470780,0.0853659,67128.0,67127.0,0.37495943]
[1730010480034,0.08536525,67128.0,67127.0,0.37495943]
[1730010481713,0.08536525,67128.0,67127.0,0.29485943]
[1730010482228,0.08536529,67128.0,67127.0,0.29485943]
[1730010483467,0.08536604,67128.0,67127.0,0.29485943]
[1730010483877,0.08536604,67128.0,67127.0,0.39270448]
[1730010487765,0.08536604,67128.0,67127.0,0.29290448]
[1730010487967,0.08536854,67128.0,67127.0,0.29290448]
[1730010492413,0.08537242,67128.0,67127.0,0.29290448]
[1730010497077,0.0853737,67128.0,67127.0,0.29290448]
[1730010500464,0.04072546,67128.0,67127.0,0.29290448]
[1730010511258,0.003644,67128.0,67127.0,0.29290448]
[1730010511513,0.04072743,67128.0,67127.0,0.29290448]
[1730010533908,0.04072743,67128.0,67127.0,0.26413853]
[1730010567067,0.04072743,67128.0,67127.0,0.16629348]
[1730010567330,0.10771776,67128.0,67127.0,0.26413853]
[1730010570860,0.10771776,67128.0,67127.0,0.25913853]
[1730010571063,0.10771776,67128.0,67127.0,0.26413853]
[1730010571877,0.10771776,67128.0,67127.0,0.11516753]
[1730010572290,0.10771776,67128.0,67127.0,0.26413853]
[1730010574555,0.10770495,67128.0,67127.0,0.26413853]
[1730010577665,0.04072743,67128.0,67127.0,0.26413853]
[1730010582486,0.10770263,67128.0,67127.0,0.26413853]
[1730010582697,0.1300277,67128.0,67127.0,0.26413853]
[1730010582907,0.29483647,67128.0,67127.0,0.26413853]
[1730010583544,0.2055362,67128.0,67127.0,0.26413853]
[1730010584166,0.04072743,67128.0,67127.0,0.26413853]
[1730010584572,0.003644,67128.0,67127.0,0.26413853]
[1730010584981,0.16844124,67128.0,67127.0,0.26413853]
[1730010585200,0.20564198,67128.0,67127.0,0.26413853]
[1730010585683,0.10780897,67128.0,67127.0,0.26413853]
[1730010585890,0.10780897,67128.0,67127.0,0.25463805]
[1730010586094,0.10780897,67128.0,67127.0,0.26413853]
[1730010587609,0.04084474,67128.0,67127.0,0.26413853]
[1730010587940,0.003644,67128.0,67127.0,0.25463805]
[1730010588143,0.003644,67128.0,67127.0,0.26413853]
[1730010588603,0.07060319,67128.0,67127.0,0.26413853]
[1730010589008,0.10780373,67128.0,67127.0,0.26413853]
[1730010590024,0.10780373,67128.0,67127.0,0.25463805]
[1730010590230,0.10780373,67128.0,67127.0,0.26413853]
[1730010591239,0.10780373,67128.0,67127.0,0.25463805]
[1730010591454,0.10780373,67128.0,67127.0,0.26413853]
[1730010596268,0.10780068,67128.0,67127.0,0.26413853]
[1730010597534,0.10779944,67128.0,67127.0,0.26413853]
[1730010598260,0.04084454,67128.0,67127.0,0.26413853]
[1730010598481,0.003644,67128.0,67127.0,0.26413853]
[1730010598836,0.07059991,67128.0,67127.0,0.26413853]
[1730010599156,0.1078009,67128.0,67127.0,0.26413853]
[1730010600359,0.1078009,67128.0,67127.0,0.25913853]
[1730010600563,0.1078009,67128.0,67127.0,0.25413853]
[1730010601186,0.1078009,67128.0,67127.0,0.15629348]
[1730010602851,0.1078009,67128.0,67127.0,0.00732248]
[1730010603249,0.04084499,67128.0,67127.0,0.00732248]
[1730010603415,0.04084499,67128.0,67127.0,0.15629348]
[1730010604453,0.10780015,67128.0,67127.0,0.15629348]
[1730010605081,0.10780015,67128.0,67127.0,0.10516753]
[1730010605523,0.04084499,67128.0,67127.0,0.25413853]
[1730010605841,0.04084499,67128.0,67127.0,0.10516753]
[1730010606443,0.04084499,67128.0,67127.0,0.25413853]
[1730010607594,0.04084499,67128.0,67127.0,0.10516753]
[1730010608199,0.04084499,67128.0,67127.0,0.25413853]
[1730010609084,0.04084499,67128.0,67127.0,0.00732248]
[1730010609843,0.20562018,67128.0,67127.0,0.00732248]
[1730010612990,0.20562018,67128.0,67127.0,0.15629348]
[1730010613220,0.20562018,67128.0,67127.0,0.00732248]
[1730010613673,0.20562018,67128.0,67127.0,0.15629348]
[1730010614651,0.20562018,67128.0,67127.0,0.00732248]
[1730010614896,0.29488223,67128.0,67127.0,0.15629348]
[1730010615091,0.29488223,67128.0,67127.0,0.00732248]
[1730010615543,0.29488223,67128.0,67127.0,0.15629348]
[1730010615767,0.29488223,67128.0,67127.0,0.00732248]
[1730010619821,0.25768124,67128.0,67127.0,0.00732248]
[1730010620063,0.29480638,67128.0,67127.0,0.00732248]
[1730010620517,0.29480638,67128.0,67127.0,0.15629348]
[1730010621424,0.29477297,67128.0,67127.0,0.15629348]
[1730010621657,0.20551425,67128.0,67127.0,0.25413853]
[1730010624069,0.2947749,67128.0,67127.0,0.25413853]
[1730010624456,0.20551425,67128.0,67127.0,0.25413853]
[1730010624651,0.1300294,67128.0,67127.0,0.25413853]
[1730010624856,0.29477451,67128.0,67127.0,0.25413853]
[1730010625057,0.20551425,67128.0,67127.0,0.25413853]
[1730010626024,0.20551761,67128.0,67127.0,0.25413853]
[1730010626948,0.29477949,67128.0,67127.0,0.10516753]
[1730010629383,0.29477949,67128.0,67127.0,0.25413853]
[1730010630196,0.29478475,67128.0,67127.0,0.25413853]
[1730010630605,0.29479696,67128.0,67127.0,0.25413853]
[1730010631490,0.29479649,67128.0,67127.0,0.25413853]
[1730010631696,0.29479687,67128.0,67127.0,0.25413853]
[1730010632137,0.20552981,67128.0,67127.0,0.25413853]
[1730010632858,0.29479682,67128.0,67127.0,0.25413853]
[1730010633115,0.20552981,67128.0,67127.0,0.25413853]
[1730010633767,0.29479787,67128.0,67127.0,0.25413853]
[1730010634994,0.04076914,67128.0,67127.0,0.25413853]
[1730010635300,0.29479828,67128.0,67127.0,0.25413853]
[1730010635492,0.25767314,67128.0,67127.0,0.25413853]
[1730010635740,0.20563955,67128.0,67127.0,0.25413853]
[1730010636223,0.29490829,67128.0,67127.0,0.25413853]
[1730010636699,0.29490829,67128.0,67127.0,0.24963805]
[1730010636924,0.29490829,67128.0,67127.0,0.25413853]
[1730010637603,0.20563955,67128.0,67127.0,0.25413853]
[1730010637825,0.31722397,67128.0,67127.0,0.25413853]
[1730010639412,0.31722397,67128.0,67127.0,0.10516753]
[1730010639634,0.20563955,67128.0,67127.0,0.10516753]
[1730010639842,0.31723532,67128.0,67127.0,0.10516753]
[1730010640484,0.31723532,67128.0,67127.0,0.25413853]
[1730010640692,0.29492029,67128.0,67127.0,0.25413853]
[1730010643973,0.31723532,67128.0,67127.0,0.25413853]
[1730010644425,0.31725139,67128.0,67127.0,0.25413853]
[1730010644632,0.20564631,67128.0,67127.0,0.25413853]
[1730010645059,0.29493028,67128.0,67127.0,0.25413853]
[1730010646130,0.20564631,67128.0,67127.0,0.25413853]
[1730010646553,0.31725397,67128.0,67127.0,0.25413853]
[1730010647203,0.20564631,67128.0,67127.0,0.25413853]
[1730010648092,0.31725397,67128.0,67127.0,0.25413853]
[1730010648974,0.31730918,67128.0,67127.0,0.25413853]
[1730010649676,0.31730918,67128.0,67127.0,0.24963805]
[1730010653154,0.31730918,67128.0,67127.0,0.10066705]
[1730010653389,0.31730918,67128.0,67127.0,0.24963805]
[1730010653611,0.20569035,67128.0,67127.0,0.10066705]
[1730010654065,0.20569035,67128.0,67127.0,0.24963805]
[1730010659597,0.3172937,67128.0,67127.0,0.24963805]
[1730010665274,0.20569035,67128.0,67127.0,0.24963805]
[1730010665525,0.13016078,67128.0,67127.0,0.42503805]
[1730010665753,0.13016204,67128.0,67127.0,0.42503805]
[1730010666017,0.04087817,67128.0,67127.0,0.42503805]
[1730010666487,0.003644,67128.0,67127.0,0.42503805]
[1730010671584,0.04828286,67128.0,67127.0,0.42503805]
[1730010671786,0.08552038,67128.0,67127.0,0.42503805]
[1730010675331,0.04088152,67128.0,67127.0,0.42503805]
[1730010684789,0.003644,67128.0,67127.0,0.42503805]
[1730010696671,0.003644,67128.0,67127.0,0.55538358]
[1730010698187,0.003644,67128.0,67127.0,0.70588739]
[1730010703926,0.003644,67128.0,67127.0,0.71769291]
[1730010717325,0.001644,67138.0,67137.0,0.46079453]
[1730010717549,0.001644,67138.0,67137.0,0.70914339]
[1730010717778,0.03888485,67138.0,67137.0,0.70914339]
[1730010718026,0.001644,67138.0,67137.0,0.70914339]
[1730010720135,0.001644,67138.0,67137.0,0.51345329]
[1730010720385,0.001644,67138.0,67137.0,0.53019834]
[1730010721559,0.001644,67138.0,67137.0,0.16544948]
[1730010722276,0.03890212,67138.0,67137.0,0.16544948]
[1730010722500,0.001644,67138.0,67137.0,0.16544948]
[1730010722723,0.03890212,67138.0,67137.0,0.16544948]
[1730010722993,0.001644,67138.0,67137.0,0.16544948]
[1730010723233,0.03890212,67138.0,67137.0,0.16544948]
[1730010723473,0.001644,67138.0,67137.0,0.16544948]
[1730010723724,0.03890212,67138.0,67137.0,0.16544948]
[1730010723960,0.001644,67138.0,67137.0,0.26329453]
[1730010724218,0.03890212,67138.0,67137.0,0.26329453]
[1730010724453,0.001644,67138.0,67137.0,0.26329453]
[1730010724958,0.03890212,67138.0,67137.0,0.26329453]
[1730010725189,0.001644,67138.0,67137.0,0.26329453]
[1730010725416,0.03890158,67138.0,67137.0,0.16544948]
[1730010725664,0.001644,67138.0,67137.0,0.26329453]
[1730010725907,0.03890158,67138.0,67137.0,0.26329453]
[1730010726144,0.001644,67138.0,67137.0,0.26329453]
[1730010726393,0.03890158,67138.0,67137.0,0.26329453]
[1730010726635,0.001644,67138.0,67137.0,0.26329453]
[1730010727144,0.03890212,67138.0,67137.0,0.26329453]
[1730010727372,0.001644,67138.0,67137.0,0.26329453]
[1730010727592,0.03890212,67138.0,67137.0,0.26329453]
[1730010727800,0.001644,67138.0,67137.0,0.26329453]
[1730010728013,0.03890212,67138.0,67137.0,0.26329453]
[1730010728206,0.001644,67138.0,67137.0,0.26329453]
[1730010728707,0.03890212,67138.0,67137.0,0.26329453]
[1730010728918,0.001644,67138.0,67137.0,0.26329453]
[1730010729146,0.03890212,67138.0,67137.0,0.26329453]
[1730010729356,0.001644,67138.0,67137.0,0.26329453]
[1730010729559,0.03890212,67138.0,67137.0,0.26329453]
[1730010729766,0.001644,67138.0,67137.0,0.26329453]
[1730010729975,0.03890212,67138.0,67137.0,0.26329453]
[1730010730185,0.001644,67138.0,67137.0,0.26329453]
[1730010730387,0.03890212,67138.0,67137.0,0.26329453]
[1730010730594,0.001644,67138.0,67137.0,0.26329453]
[1730010730824,0.03890212,67138.0,67137.0,0.26329453]
[1730010731041,0.001644,67138.0,67137.0,0.26329453]
[1730010731456,0.03890212,67138.0,67137.0,0.26329453]
[1730010734393,0.03890212,67138.0,67137.0,0.150949]
[1730010734606,0.08348097,67138.0,67137.0,0.150949]
[1730010734853,0.03890212,67138.0,67137.0,0.150949]
[1730010735058,0.03890212,67138.0,67137.0,0.002]
[1730010735059,0.2033704,67138.0,67137.0,0.002]
[1730010735701,0.30106815,67138.0,67137.0,0.002]
[1730010736333,0.38086815,67138.0,67137.0,0.002]
[1730010737389,0.47002586,67138.0,67137.0,0.002]
[1730010740219,0.38086815,67138.0,67137.0,0.002]
[1730010742834,0.49231529,67138.0,67137.0,0.002]
[1730010743040,0.38086815,67138.0,67137.0,0.002]
[1730010744324,0.53137196,67138.0,67134.0,0.00450048]
[1730010744567,0.324351,67136.0,67135.0,0.002]
[1730010744804,0.81050136,67136.0,67135.0,0.002]
[1730010745044,0.81050136,67136.0,67133.0,0.002]
[1730010745045,0.148955,67134.0,67133.0,0.002]
[1730010745292,0.67477037,67134.0,67133.0,0.002]
[1730010746467,0.52585234,67134.0,67133.0,0.002]
[1730010747168,0.67480734,67134.0,67133.0,0.002]
[1730010747396,0.52585234,67134.0,67133.0,0.002]
[1730010748316,0.67480734,67134.0,67133.0,0.002]
[1730010749169,0.52585234,67134.0,67133.0,0.002]
[1730010749663,0.67480734,67134.0,67133.0,0.002]
[1730010750330,0.52585234,67134.0,67133.0,0.002]
[1730010750541,0.63723314,67134.0,67133.0,0.002]
[1730010751144,0.78618814,67134.0,67133.0,0.002]
[1730010751391,0.63723314,67134.0,67133.0,0.002]
[1730010753176,0.52585234,67134.0,67133.0,0.002]
[1730010754543,0.67480734,67134.0,67133.0,0.002]
[1730010755099,0.52585234,67134.0,67133.0,0.002]
[1730010755295,0.67480734,67134.0,67133.0,0.002]
[1730010755514,0.002,67131.0,67130.0,0.03076542]
[1730010755715,0.15250381,67131.0,67130.0,0.03076542]
[1730010755915,0.18979166,67131.0,67130.0,0.03076542]
[1730010756738,0.18779166,67131.0,67130.0,0.03076542]
[1730010757320,0.23231634,67131.0,67130.0,0.03076542]
[1730010759692,0.23231081,67131.0,67130.0,0.03076542]
[1730010760299,0.18779166,67131.0,67130.0,0.03076542]
[1730010760700,0.23231081,67131.0,67130.0,0.03076542]
[1730010760908,0.18779166,67131.0,67130.0,0.03076542]
[1730010761600,0.23230706,67131.0,67130.0,0.03076542]
[1730010761801,0.18779166,67131.0,67130.0,0.03076542]
[1730010762009,0.23230734,67131.0,67130.0,0.03076542]
[1730010763289,0.18779166,67131.0,67130.0,0.03076542]
[1730010765271,0.25457039,67131.0,67130.0,0.03076542]
[1730010767903,0.18779166,67131.0,67130.0,0.03076542]
[1730010768135,0.25457039,67131.0,67130.0,0.03076542]
[1730010768566,0.23233258,67131.0,67130.0,0.03076542]
[1730010769021,0.23233282,67131.0,67130.0,0.03076542]
[1730010769312,0.18779166,67131.0,67130.0,0.03076542]
[1730010769545,0.23233652,67131.0,67130.0,0.03076542]
[1730010770228,0.18779166,67131.0,67130.0,0.03076542]
[1730010770454,0.23234246,67131.0,67130.0,0.03076542]
[1730010771341,0.18779166,67131.0,67130.0,0.03076542]
[1730010771567,0.2546034,67131.0,67130.0,0.03076542]
[1730010772483,0.18779166,67131.0,67130.0,0.03076542]
[1730010772945,0.25462361,67131.0,67130.0,0.03076542]
[1730010773443,0.18779166,67131.0,67130.0,0.03076542]
[1730010773927,0.25462983,67131.0,67130.0,0.03076542]
[1730010774663,0.25627383,67131.0,67130.0,0.03076542]
[1730010776548,0.18943566,67131.0,67130.0,0.03076542]
[1730010776774,0.25629344,67131.0,67130.0,0.03076542]
[1730010777310,0.18943566,67131.0,67130.0,0.03076542]
[1730010777752,0.35398898,67131.0,67130.0,0.03076542]
[1730010778175,0.25630232,67131.0,67130.0,0.03076542]
[1730010778384,0.35401492,67131.0,67130.0,0.03076542]
[1730010778833,0.44309724,67131.0,67130.0,0.03076542]
[1730010780355,0.35401492,67131.0,67130.0,0.03076542]
[1730010781446,0.35407259,67131.0,67130.0,0.03076542]
[1730010782667,0.46557273,67131.0,67130.0,0.03076542]
[1730010786425,0.35407259,67131.0,67130.0,0.03076542]
[1730010786864,0.354137,67131.0,67130.0,0.03076542]
[1730010788464,0.20363319,67131.0,67130.0,0.03076542]
[1730010788662,0.20363319,67131.0,67130.0,0.35572942]
[1730010788888,0.16634534,67131.0,67130.0,0.35572942]
[1730010790458,0.20371038,67131.0,67130.0,0.35572942]
[1730010790902,0.03900904,67131.0,67130.0,0.35572942]
[1730010791096,0.001644,67131.0,67130.0,0.35572942]
[1730010792797,0.16649801,67131.0,67130.0,0.35572942]
[1730010792996,0.20386461,67131.0,67130.0,0.35572942]
[1730010795876,0.20386461,67131.0,67130.0,0.20676542]
[1730010798887,0.35436842,67131.0,67130.0,0.03076542]
[1730010803137,0.50333042,67131.0,67130.0,0.03076542]
[1730010803343,0.35436842,67131.0,67130.0,0.03076542]
[1730010803542,0.50333042,67131.0,67130.0,0.03076542]
[1730010803725,0.35436842,67131.0,67130.0,0.03076542]
[1730010804245,0.50333042,67131.0,67130.0,0.03076542]
[1730010804655,0.35436842,67131.0,67130.0,0.03076542]
[1730010805963,0.50333042,67131.0,67130.0,0.03076542]
[1730010806308,0.35436842,67131.0,67130.0,0.03076542]
[1730010809924,0.35436842,67131.0,67130.0,0.002]
[1730010810151,0.48829388,67131.0,67130.0,0.002]
[1730010811455,0.35436842,67131.0,67130.0,0.002]
[1730010813621,0.18951441,67131.0,67130.0,0.002]
[1730010813831,0.35429987,67131.0,67130.0,0.002]
[1730010816400,0.48822075,67131.0,67130.0,0.002]
[1730010816607,0.35429987,67131.0,67130.0,0.002]
[1730010830851,0.48821673,67131.0,67130.0,0.002]
[1730010831301,0.35429987,67131.0,67130.0,0.002]
[1730010834892,0.35429987,67131.0,67129.0,0.002]
[1730010834893,0.35479939,67131.0,67129.0,0.002]
[1730010835111,0.31528927,67130.0,67129.0,0.002]
[1730010835540,0.35273364,67130.0,67129.0,0.002]
[1730010835990,0.35273364,67130.0,67128.0,0.002822]
[1730010836200,0.16478546,67129.0,67128.0,0.002822]
[1730010836453,0.31528927,67129.0,67128.0,0.002822]
[1730010836670,0.35273337,67129.0,67128.0,0.002822]
[1730010836881,0.35271045,67129.0,67128.0,0.002822]
[1730010844611,0.35278634,67129.0,67128.0,0.002822]
[1730010847757,0.35278634,67129.0,67128.0,0.098022]
[1730010848236,0.31534224,67129.0,67128.0,0.098022]
[1730010848647,0.35286259,67129.0,67128.0,0.098022]
[1730010853283,0.18802416,67129.0,67128.0,0.098022]
[1730010853708,0.35291495,67129.0,67128.0,0.098022]
[1730010854988,0.35455895,67129.0,67128.0,0.098022]
[1730010860165,0.18966816,67129.0,67128.0,0.098022]
[1730010862442,0.35456726,67129.0,67128.0,0.098022]
[1730010866007,0.35456546,67129.0,67128.0,0.098022]
[1730010866229,0.35456546,67129.0,67128.0,0.002822]